fUST/lending_fUST_20250219
["ID","MTS","AMOUNT","RATE_DAILY","PERIOD"]
[353536675,1739903448650,-500.0,0.00013698,2]
[353536677,1739903448661,-500.0,0.00013698,2]
[353536679,1739903448671,-500.0,0.00013698,2]
[353536681,1739903448682,-2467.19,0.00013698,2]
[353536683,1739903448691,-500.0,0.00013698,2]
[353536685,1739903448702,-500.0,0.00013698,2]
[353536688,1739903448711,-500.0,0.00013698,2]
[353536690,1739903448722,-500.0,0.00013698,2]
[353536691,1739903448731,-500.0,0.00013698,2]
[353536693,1739903448740,-1222.34,0.00013698,2]
[353536695,1739903448749,-500.0,0.00013698,2]
[353536697,1739903448760,-1222.34,0.00013698,2]
[353536699,1739903448769,-1222.34,0.00013698,2]
[353536701,1739903448778,-1222.34,0.00013698,2]
[353536703,1739903448787,-1222.34,0.00013698,2]
[353536705,1739903448798,-1222.34,0.00013698,2]
[353536707,1739903448808,-1222.34,0.00013698,2]
[353536709,1739903448817,-1222.34,0.00013698,2]
[353536711,1739903448827,-1222.34,0.00013698,2]
[353536713,1739903448836,-1222.34,0.00013698,2]
[353536715,1739903448846,-1222.34,0.00013698,2]
[353536717,1739903448855,-1222.34,0.00013698,2]
[353536719,1739903448865,-1222.34,0.00013698,2]
[353536721,1739903448874,-1222.34,0.00013698,2]
[353536723,1739903448884,-1222.34,0.00013698,2]
[353536725,1739903448893,-1222.34,0.00013698,2]
[353536727,1739903448904,-1222.34,0.00013698,2]
[353536729,1739903448914,-1222.34,0.00013698,2]
[353536731,1739903448924,-1222.34,0.00013698,2]
[353536733,1739903448934,-1222.34,0.00013698,2]
[353536735,1739903448944,-1222.34,0.00013698,2]
[353536737,1739903448953,-1222.34,0.00013698,2]
[353536739,1739903448963,-1222.34,0.00013698,2]
[353536741,1739903448973,-1222.53,0.00013698,2]
[353536743,1739903448984,-500.0,0.00013698,2]
[353536745,1739903448995,-500.0,0.00013698,2]
[353536747,1739903449006,-500.0,0.00013698,2]
[353536749,1739903449016,-500.0,0.00013698,2]
[353536750,1739903449027,-500.0,0.00013698,2]
[353536752,1739903449037,-500.0,0.00013698,2]
[353536754,1739903449050,-500.0,0.00013698,2]
[353536756,1739903449060,-500.0,0.00013698,2]
[353536758,1739903449070,-500.0,0.00013698,2]
[353536760,1739903449080,-500.0,0.00013698,2]
[353536762,1739903449091,-1172.74,0.00013698,2]
[353536764,1739903449101,-500.0,0.00013698,2]
[353536766,1739903449111,-500.0,0.00013698,2]
[353536768,1739903449121,-500.0,0.00013698,2]
[353536770,1739903449131,-174.74641207,0.00013698,2]
[353536772,1739903449142,-500.0,0.00013698,2]
[353536774,1739903449152,-500.0,0.00013698,2]
[353536776,1739903449162,-500.39498571,0.00013698,2]
[353536778,1739903449173,-1515.91,0.00013698,2]
[353536780,1739903449183,-500.0,0.00013698,2]
[353536782,1739903449194,-500.85517924,0.00013698,2]
[353536785,1739903449205,-500.0,0.00013698,2]
[353536786,1739903449216,-500.0,0.00013698,2]
[353536788,1739903449226,-500.0,0.00013698,2]
[353536790,1739903449237,-671.69,0.00013698,2]
[353536792,1739903449247,-500.0,0.00013698,2]
[353536795,1739903449257,-500.0,0.00013698,2]
[353536797,1739903449268,-500.77484063,0.00013698,2]
[353536798,1739903449279,-500.0,0.00013698,2]
[353536801,1739903449289,-500.0,0.00013698,2]
[353536802,1739903449302,-500.0,0.00013698,2]
[353536805,1739903449314,-693.72,0.00013698,2]
[353536807,1739903449324,-500.0,0.00013698,2]
[353536808,1739903449334,-501.08047821,0.00013698,2]
[353536810,1739903449345,-500.0,0.00013698,2]
[353536812,1739903449358,-500.0,0.00013698,2]
[353536814,1739903449369,-500.0,0.00013698,2]
[353536816,1739903449379,-500.0,0.00013698,2]
[353536818,1739903449391,-500.0,0.00013698,2]
[353536821,1739903449402,-503.75022547,0.00013698,2]
[353536822,1739903449412,-500.0,0.00013698,2]
[353536824,1739903449422,-500.0,0.00013698,2]
[353536826,1739903449433,-500.0,0.00013698,2]
[353536828,1739903449444,-500.0,0.00013698,2]
[353536830,1739903449454,-500.0,0.00013698,2]
[353536832,1739903449464,-500.0,0.00013698,2]
[353536834,1739903449474,-500.0,0.00013698,2]
[353536836,1739903449484,-500.0,0.00013698,2]
[353536838,1739903449495,-2318.4,0.00013698,2]
[353536840,1739903449505,-2318.4,0.00013698,2]
[353536842,1739903449515,-500.0,0.00013698,2]
[353536844,1739903449526,-2318.4,0.00013698,2]
[353536846,1739903449536,-500.0,0.00013698,2]
[353536848,1739903449547,-2318.4,0.00013698,2]
[353536850,1739903449558,-2318.4,0.00013698,2]
[353536852,1739903449568,-288.04560858,0.00013698,2]
[353536854,1739903449579,-2318.4,0.00013698,2]
[353536856,1739903449589,-2318.4,0.00013698,2]
[353536858,1739903449599,-500.0,0.00013698,2]
[353536861,1739903449610,-2318.4,0.00013698,2]
[353536862,1739903449620,-513.76550804,0.00013698,2]
[353536864,1739903449631,-2318.4,0.00013698,2]
[353536867,1739903449641,-2318.4,0.00013698,2]
[353536869,1739903449652,-2318.4,0.00013698,2]
[353536871,1739903449662,-500.0,0.00013698,2]
[353536872,1739903449671,-500.0,0.00013698,2]
[353536875,1739903449681,-2318.4,0.00013698,2]
[353536877,1739903449691,-500.0,0.00013698,2]
[353536878,1739903449701,-2318.4,0.00013698,2]
[353536880,1739903449710,-2318.4,0.00013698,2]
[353536882,1739903449719,-2318.4,0.00013698,2]
[353536884,1739903449728,-2318.4,0.00013698,2]
[353536886,1739903449737,-2318.4,0.00013698,2]
[353536888,1739903449746,-2318.4,0.00013698,2]
[353536890,1739903449756,-2318.4,0.00013698,2]
[353536892,1739903449767,-2318.4,0.00013698,2]
[353536894,1739903449776,-2318.4,0.00013698,2]
[353536896,1739903449786,-2318.4,0.00013698,2]
[353536898,1739903449796,-2318.4,0.00013698,2]
[353536900,1739903449805,-500.0,0.00013698,2]
[353536902,1739903449815,-2318.41905915,0.00013698,2]
[353536904,1739903449825,-500.0,0.00013698,2]
[353536910,1739903449835,-500.0,0.00013698,2]
[353536911,1739903449913,-500.0,0.00013698,2]
[353536912,1739903449923,-500.0,0.00013698,2]
[353536913,1739903449933,-504.22762215,0.00013698,2]
[353536914,1739903449943,-501.38936292,0.00013698,2]
[353536915,1739903449953,-500.0,0.00013698,2]
[353536916,1739903449963,-500.0,0.00013698,2]
[353536917,1739903449974,-500.0,0.00013698,2]
[353536918,1739903449985,-500.0,0.00013698,2]
[353536919,1739903449995,-500.0,0.00013698,2]
[353536920,1739903450006,-565.86,0.00013698,2]
[353536921,1739903450017,-1517.42,0.00013698,2]
[353536922,1739903450026,-500.0,0.00013698,2]
[353536924,1739903450036,-509.85656518,0.00013698,2]
[353536926,1739903450047,-500.0,0.00013698,2]
[353536928,1739903450057,-500.0,0.00013698,2]
[353536930,1739903450067,-500.0,0.00013698,2]
[353536932,1739903450077,-509.35374891,0.00013698,2]
[353536934,1739903450086,-500.0,0.00013698,2]
[353536936,1739903450096,-355.89651006,0.00013698,2]
[353536938,1739903450106,-500.0,0.00013698,2]
[353536940,1739903450117,-500.0,0.00013698,2]
[353536942,1739903450128,-500.0,0.00013698,2]
[353536944,1739903450138,-500.0,0.00013698,2]
[353536946,1739903450148,-327.78551959,0.00013698,2]
[353536948,1739903450158,-500.0,0.00013698,2]
[353536950,1739903450168,-513.0595766,0.00013698,2]
[353536952,1739903450178,-500.93631628,0.00013698,2]
[353536954,1739903450189,-500.0,0.00013698,2]
[353536956,1739903450199,-500.0,0.00013698,2]
[353536958,1739903450209,-502.04530904,0.00013698,2]
[353536960,1739903450219,-500.0,0.00013698,2]
[353536962,1739903450229,-500.0,0.00013698,2]
[353536964,1739903450238,-175.428824,0.00013699,2]
[353536966,1739903450248,-500.0,0.00013699,2]
[353536968,1739903450258,-500.0,0.00013699,2]
[353536970,1739903450268,-500.0,0.00013699,2]
[353536972,1739903450278,-500.0,0.00013699,2]
[353536974,1739903450288,-500.0,0.00013699,2]
[353536976,1739903450298,-500.0,0.00013699,2]
[353536978,1739903450309,-500.0,0.00013699,2]
[353536980,1739903450319,-500.0,0.00013699,2]
[353536982,1739903450330,-450.0,0.00013699,2]
[353536984,1739903450339,-500.0,0.00013699,2]
[353536986,1739903450350,-252.61217134,0.00013699,2]
[353536988,1739903450363,-500.0,0.00013699,2]
[353536990,1739903450372,-500.0,0.00013699,2]
[353536992,1739903450382,-500.0,0.00013699,2]
[353536994,1739903450393,-500.0,0.00013699,2]
[353536996,1739903450402,-524.23040724,0.00013766,2]
[353536998,1739903450411,-500.0,0.00013773,2]
[353537000,1739903450421,-500.0,0.00013773,2]
[353537002,1739903450432,-500.0,0.00013773,2]
[353537004,1739903450441,-285.12082523,0.00013773,2]
[353537006,1739903450451,-268.652507,0.00013773,2]
[353537009,1739903450461,-261.51444989,0.00013773,2]
[353537011,1739903450471,-500.25129263,0.00013773,2]
[353537013,1739903450480,-500.0,0.00013773,2]
[353537015,1739903450489,-500.0,0.00013773,2]
[353537016,1739903450498,-500.0,0.0001378,2]
[353537018,1739903450507,-501.27627951,0.0001378,2]
[353537020,1739903450517,-157.27088607,0.0001378,2]
[353537022,1739903450527,-505.07339497,0.0001378,2]
[353537024,1739903450536,-506.69217086,0.0001378,2]
[353537026,1739903450547,-480.61972094,0.0001378,2]
[353537028,1739903450556,-500.77991118,0.0001378,2]
[353537030,1739903450566,-628.74285287,0.0001378,2]
[353537033,1739903450576,-500.0,0.0001378,2]
[353537034,1739903450585,-500.0,0.0001378,2]
[353537036,1739903450594,-500.0,0.0001378,2]
[353537038,1739903450604,-500.0,0.0001378,2]
[353537040,1739903450613,-500.0,0.0001378,2]
[353537043,1739903450623,-500.0,0.0001378,2]
[353537044,1739903450632,-458.52951438,0.0001378,2]
[353537047,1739903450642,-500.0,0.0001378,2]
[353537049,1739903450651,-500.0,0.0001378,2]
[353537051,1739903450660,-500.0,0.0001378,2]
[353537053,1739903450670,-500.0,0.0001378,2]
[353537055,1739903450679,-500.0,0.0001378,2]
[353537056,1739903450688,-500.0,0.0001378,2]
[353537058,1739903450697,-500.0,0.0001378,2]
[353537060,1739903450707,-500.0,0.0001378,2]
[353537062,1739903450716,-500.0,0.0001378,2]
[353537064,1739903450726,-500.0,0.0001378,2]
[353537066,1739903450735,-505.591888,0.0001378,2]
[353537069,1739903450744,-500.0,0.0001378,2]
[353537070,1739903450753,-500.0,0.0001378,2]
[353537073,1739903450763,-406.85361087,0.0001378,2]
[353537075,1739903450773,-500.0,0.0001378,2]
[353537077,1739903450782,-500.0,0.0001378,2]
[353537079,1739903450793,-500.0,0.0001378,2]
[353537081,1739903450802,-500.0,0.0001378,2]
[353537083,1739903450812,-500.0,0.0001378,2]
[353537085,1739903450822,-500.0,0.0001378,2]
[353537087,1739903450831,-500.0,0.0001378,2]
[353537089,1739903450840,-500.0,0.0001378,2]
[353537091,1739903450850,-501.50324051,0.0001378,2]
[353537093,1739903450859,-500.0,0.0001378,2]
[353537095,1739903450868,-500.0,0.0001378,2]
[353537097,1739903450877,-569.51056396,0.0001378,2]
[353537099,1739903450886,-500.0,0.0001378,2]
[353537101,1739903450895,-500.0,0.0001378,2]
[353537103,1739903450905,-500.0,0.0001378,2]
[353537105,1739903450915,-438.19380035,0.0001378,2]
[353537107,1739903450925,-500.0,0.0001378,2]
[353537109,1739903450934,-500.0,0.0001378,2]
[353537111,1739903450943,-500.0,0.0001378,2]
[353537113,1739903450953,-500.0,0.0001378,2]
[353537115,1739903450962,-500.0,0.0001378,2]
[353537117,1739903450972,-500.0,0.0001378,2]
[353537124,1739903450980,-500.0,0.0001378,2]
[353537127,1739903451047,-500.0,0.0001378,2]
[353537129,1739903451056,-500.0,0.0001378,2]
[353537130,1739903451066,-500.0,0.0001378,2]
[353537133,1739903451076,-500.0,0.0001378,2]
[353537135,1739903451086,-500.0,0.0001378,2]
[353537137,1739903451095,-500.0,0.0001378,2]
[353537139,1739903451105,-500.0,0.0001378,2]
[353537141,1739903451114,-500.0,0.0001378,2]
[353537143,1739903451123,-500.0,0.0001378,2]
[353537144,1739903451133,-726.6,0.0001378,2]
[353537146,1739903451142,-500.0,0.0001378,2]
[353537148,1739903451152,-500.0,0.0001378,2]
[353537150,1739903451161,-692.04,0.0001378,2]
[353537152,1739903451170,-487.29448985,0.0001378,2]
[353537154,1739903451180,-500.0,0.0001378,2]
[353537156,1739903451189,-500.0,0.0001378,2]
[353537158,1739903451198,-500.0,0.0001378,2]
[353537160,1739903451207,-500.0,0.0001378,2]
[353537162,1739903451217,-500.0,0.0001378,2]
[353537164,1739903451226,-500.0,0.0001378,2]
[353537166,1739903451235,-500.0,0.0001378,2]
[353537168,1739903451245,-500.0,0.0001378,2]
[353537170,1739903451254,-500.0,0.0001378,2]
[353537172,1739903451264,-505.93285351,0.0001378,2]
[353537174,1739903451273,-500.0,0.0001378,2]
[353537176,1739903451283,-500.0,0.0001378,2]
[353537178,1739903451294,-500.0,0.0001378,2]
[353537180,1739903451303,-288.74828339,0.0001378,2]
[353537182,1739903451313,-500.0,0.0001378,2]
[353537184,1739903451323,-500.0,0.0001378,2]
[353537186,1739903451332,-500.0,0.0001378,2]
[353537189,1739903451341,-500.0,0.0001378,2]
[353537190,1739903451351,-500.0,0.0001378,2]
[353537192,1739903451364,-500.0,0.0001378,2]
[353537195,1739903451374,-501.22472776,0.0001378,2]
[353537197,1739903451383,-500.0,0.0001378,2]
[353537199,1739903451394,-500.0,0.0001378,2]
[353537200,1739903451404,-500.0,0.0001378,2]
[353537202,1739903451413,-1046.15,0.0001378,2]
[353537204,1739903451423,-500.0,0.0001378,2]
[353537206,1739903451432,-506.34000117,0.0001378,2]
[353537208,1739903451442,-505.98988764,0.0001378,2]
[353537210,1739903451451,-500.0,0.0001378,2]
[353537212,1739903451461,-500.0,0.0001378,2]
[353537214,1739903451470,-506.46097388,0.0001378,2]
[353537216,1739903451479,-509.53,0.0001378,2]
[353537218,1739903451489,-500.0,0.0001378,2]
[353537220,1739903451498,-502.88333331,0.0001378,2]
[353537222,1739903451507,-500.0,0.0001378,2]
[353537224,1739903451517,-500.0,0.0001378,2]
[353537227,1739903451528,-500.0,0.0001378,2]
[353537229,1739903451546,-500.0,0.0001378,2]
[353537232,1739903451559,-500.0,0.0001378,2]
[353537234,1739903451575,-500.0,0.0001378,2]
[353537237,1739903451592,-500.0,0.0001378,2]
[353537240,1739903451608,-500.0,0.0001378,2]
[353537243,1739903451625,-500.0,0.0001378,2]
[353537245,1739903451639,-500.0,0.0001378,2]
[353537248,1739903451655,-500.0,0.0001378,2]
[353537251,1739903451669,-500.0,0.0001378,2]
[353537253,1739903451682,-500.0,0.0001378,2]
[353537256,1739903451697,-500.0,0.0001378,2]
[353537258,1739903451714,-601.07,0.0001378,2]
[353537261,1739903451731,-500.0,0.0001378,2]
[353537264,1739903451747,-500.0,0.0001378,2]
[353537266,1739903451759,-500.0,0.0001378,2]
[353537269,1739903451776,-500.0,0.0001378,2]
[353537271,1739903451790,-502.17033903,0.0001378,2]
[353537274,1739903451806,-500.0,0.0001378,2]
[353537276,1739903451820,-500.0,0.0001378,2]
[353537278,1739903451832,-329.02380309,0.0001378,2]
[353537281,1739903451847,-500.0,0.0001378,2]
[353537283,1739903451860,-500.0,0.0001378,2]
[353537286,1739903451873,-500.0,0.0001378,2]
[353537288,1739903451886,-500.0,0.0001378,2]
[353537290,1739903451899,-500.0,0.0001378,2]
[353537293,1739903451913,-500.0,0.0001378,2]
[353537295,1739903451927,-500.0,0.0001378,2]
[353537298,1739903451940,-500.0,0.0001378,2]
[353537300,1739903451954,-500.0,0.0001378,2]
[353537302,1739903451968,-500.0,0.0001378,2]
[353537305,1739903451982,-500.0,0.0001378,2]
[353537307,1739903451996,-500.0,0.0001378,2]
[353537310,1739903452009,-503.77826679,0.0001378,2]
[353537312,1739903452022,-500.0,0.0001378,2]
[353537314,1739903452035,-500.0,0.0001378,2]
[353537317,1739903452051,-500.0,0.0001378,2]
[353537319,1739903452064,-501.63734899,0.0001378,2]
[353537322,1739903452078,-500.0,0.0001378,2]
[353537324,1739903452091,-500.0,0.0001378,2]
[353537327,1739903452105,-500.0,0.0001378,2]
[353537329,1739903452118,-500.0,0.0001378,2]
[353537332,1739903452132,-500.0,0.0001378,2]
[353537334,1739903452145,-500.0,0.0001378,2]
[353537337,1739903452159,-500.0,0.0001378,2]
[353537339,1739903452172,-500.0,0.0001378,2]
[353537341,1739903452186,-500.0,0.0001378,2]
[353537344,1739903452199,-500.0,0.0001378,2]
[353537346,1739903452211,-500.0,0.0001378,2]
[353537348,1739903452220,-288.92977197,0.0001378,2]
[353537350,1739903452230,-500.0,0.0001378,2]
[353537363,1739903452341,-500.0,0.0001378,2]
[353537365,1739903452352,-262.21998038,0.0001378,2]
[353537367,1739903452365,-553.2042702,0.0001378,2]
[353537371,1739903452400,-146.3357298,0.0001378,2]
[353537374,1739903452410,-323.3542702,0.0001378,2]
[353537376,1739903452426,-176.6457298,0.0001378,2]
[353537378,1739903452436,-520.78279223,0.0001378,2]
[353537379,1739903452447,-500.0,0.0001378,2]
[353537380,1739903452456,-117.64304707,0.0001378,2]
[353537405,1739903452685,-317.49207598,0.00013698,2]
[353537407,1739903452697,-182.50792402,0.00013698,2]
[353537409,1739903452707,-305.23003691,0.00013698,2]
[353537411,1739903452717,-439.24687216,0.0001378,2]
[353537413,1739903452726,-500.0,0.0001378,2]
[353537415,1739903452735,-500.0,0.0001378,2]
[353537417,1739903452745,-570.65,0.0001378,2]
[353537419,1739903452754,-500.0,0.0001378,2]
[353537421,1739903452763,-500.0,0.0001378,2]
[353537423,1739903452772,-500.0,0.0001378,2]
[353537425,1739903452782,-500.0,0.0001378,2]
[353537427,1739903452791,-202.86456691,0.0001378,2]
[353537429,1739903452803,-297.13543309,0.0001378,2]
[353537431,1739903452813,-500.0,0.0001378,2]
[353537434,1739903452822,-503.34952851,0.0001378,2]
[353537436,1739903452832,-500.0,0.0001378,2]
[353537437,1739903452842,-505.63976261,0.0001378,2]
[353537439,1739903452851,-324.82527579,0.0001378,2]
[353537475,1739904342135,-802.67195795,0.00011661,2]
[353537476,1739904443151,-177.13927472,0.00011544,2]
[353537477,1739904443174,-1418.43089815,0.00011661,2]
[353537478,1739904450079,-1318.07485897,0.00011661,2]
[353537479,1739904452105,-676.30951148,0.00011661,2]
[353537480,1739904452148,-586.35489193,0.00011661,2]
[353537484,1739904550483,400.0,9.041e-05,2]
[353537485,1739904552134,-4765.09481479,0.00011544,2]
[353537486,1739904552158,-300.0,0.00012018,2]
[353537487,1739904552180,-16492.22425419,0.00012019,2]
[353537488,1739904571106,-8407.77574581,0.00012019,2]
[353537489,1739904571129,-500.0,0.00012293,2]
[353537490,1739904571150,-164.15450982,0.00012293,2]
[353537491,1739904571173,-500.0,0.00012293,2]
[353537492,1739904571195,-500.0,0.00012293,2]
[353537493,1739904571216,-500.0,0.00012293,2]
[353537494,1739904571238,-500.0,0.00012293,2]
[353537495,1739904571260,-500.0,0.00012293,2]
[353537496,1739904571281,-500.0,0.00012293,2]
[353537497,1739904571303,-500.0,0.00012293,2]
[353537498,1739904571327,-500.0,0.00012293,2]
[353537499,1739904571347,-500.0,0.00012293,2]
[353537500,1739904571369,-500.0,0.00012293,2]
[353537501,1739904571391,-500.0,0.00012293,2]
[353537502,1739904571414,-500.0,0.00012293,2]
[353537503,1739904571436,-500.0,0.00012293,2]
[353537504,1739904571460,-500.0,0.00012293,2]
[353537505,1739904571481,-489.3034585,0.00012293,2]
[353537506,1739904571502,-547.60817222,0.00012293,2]
[353537507,1739904571525,-500.0,0.00012293,2]
[353537508,1739904571547,-500.0,0.00012293,2]
[353537509,1739904571570,-500.0,0.00012293,2]
[353537510,1739904571591,-500.0,0.00012293,2]
[353537511,1739904571612,-264.9215297,0.00012293,2]
[353537512,1739904571634,-500.0,0.00012293,2]
[353537513,1739904571657,-500.0,0.00012293,2]
[353537514,1739904571679,-342.0,0.00012293,2]
[353537515,1739904571701,-500.0,0.00012293,2]
[353537516,1739904571723,-500.0,0.00012293,2]
[353537517,1739904571750,-500.0,0.00012293,2]
[353537518,1739904571778,-500.0,0.00012293,2]
[353537519,1739904571802,-500.0,0.00012293,2]
[353537520,1739904571828,-500.0,0.00012293,2]
[353537521,1739904571853,-220.54899361,0.00012293,2]
[353537522,1739904571877,-500.0,0.00012293,2]
[353537523,1739904571903,-500.0,0.00012293,2]
[353537524,1739904571927,-274.14185106,0.00012293,2]
[353537525,1739904571950,-500.0,0.00012293,2]
[353537526,1739904571974,-500.0,0.00012293,2]
[353537527,1739904571996,-500.0,0.00012293,2]
[353537528,1739904572019,-500.0,0.00012293,2]
[353537529,1739904572042,-500.0,0.00012293,2]
[353537530,1739904572066,-578.0,0.00012293,2]
[353537531,1739904572088,-246.96834135,0.00012294,2]
[353537532,1739904572112,-864.57739793,0.000123,7]
[353537570,1739904632289,-699.6243386,0.000123,7]
[353537571,1739904632300,-3000.0,0.00012338,2]
[353537572,1739904632310,-735.31483046,0.00012373,2]
[353537573,1739904632321,-300.0,0.00012436,2]
[353537574,1739904632331,-249.12237011,0.00012437,2]
[353537575,1739904632340,-500.0,0.00012437,2]
[353537576,1739904632350,-500.0,0.00012437,2]
[353537577,1739904632363,-422.04711107,0.00012437,2]
[353537578,1739904632372,-453.57821816,0.00012437,2]
[353537579,1739904632381,-171.95646358,0.00012437,2]
[353537580,1739904632391,-500.0,0.00012437,2]
[353537581,1739904632401,-500.0,0.00012437,2]
[353537582,1739904632412,-196.10239219,0.00012437,2]
[353537583,1739904632423,-246.72766596,0.00012437,2]
[353537584,1739904632433,-380.0,0.00012437,2]
[353537585,1739904632443,-496.26558731,0.00012438,2]
[353537586,1739904632476,-421060.30664378,0.00012438,2]
[353537587,1739904632497,-1351.63840695,0.00012438,2]
[353537642,1739904638268,-4758.04191905,0.00012438,2]
[353537645,1739904638280,-1328.70796739,0.00012438,2]
[353537647,1739904638291,-2145.88187002,0.00012438,2]
[353537649,1739904638302,-75000.0,0.00012438,2]
[353537651,1739904638313,-465021.58823734,0.00012438,2]
[353537810,1739904644469,-23990.59999999,0.00012438,2]
[353537823,1739904644527,-510.0,0.00012438,2]
[353537834,1739904644581,-24700.27936817,0.00012438,2]
[353537837,1739904644591,-403.98581552,0.00012473,2]
[353537840,1739904644601,-500.0,0.00012473,2]
[353537843,1739904644610,-502.8772763,0.00012473,2]
[353537846,1739904644622,-500.0,0.00012473,2]
[353537849,1739904644632,-735.31483044,0.00012679,2]
[353537852,1739904644641,-735.31483044,0.00012986,2]
[353537855,1739904644651,-1000.0,0.00013021,2]
[353537858,1739904644661,-800.0,0.00013068,2]
[353537861,1739904644671,-186752.02365075,0.00013148,2]
[353537864,1739904644680,-735.31483044,0.00013292,2]
[353537868,1739904644691,-662.2927496,0.00013504,2]
[353537871,1739904644701,-735.31483044,0.00013598,2]
[353537874,1739904644711,-420.0,0.00013646,2]
[353537877,1739904644721,-500.0,0.00013698,2]
[353537879,1739904644730,-500.0,0.00013698,2]
[353537882,1739904644740,-500.0,0.00013698,2]
[353537885,1739904644750,-500.0,0.00013698,2]
[353537888,1739904644759,-504.82388529,0.00013698,2]
[353537891,1739904644769,-500.0,0.00013698,2]
[353537894,1739904644781,-500.0,0.00013698,2]
[353537896,1739904644792,-550.0,0.00013698,2]
[353537899,1739904644802,-500.0,0.00013698,2]
[353537901,1739904644812,-500.0,0.00013698,2]
[353537903,1739904644822,-500.0,0.00013698,2]
[353537905,1739904644832,-500.0,0.00013698,5]
[353537907,1739904644842,-500.0,0.00013698,2]
[353537909,1739904644852,-534.20175607,0.00013698,2]
[353537911,1739904644863,-500.0,0.00013698,2]
[353537913,1739904644874,-500.0,0.00013698,2]
[353537915,1739904644884,-500.0,0.00013698,2]
[353537917,1739904644894,-501.83347239,0.00013698,2]
[353537919,1739904644905,-500.0,0.00013698,2]
[353537921,1739904644915,-500.0,0.00013698,2]
[353537923,1739904644925,-500.0,0.00013698,2]
[353537925,1739904644935,-500.0,0.00013698,2]
[353537927,1739904644947,-434.76973342,0.00013698,2]
[353537930,1739904644959,-500.0,0.00013698,2]
[353537931,1739904644974,-500.0,0.00013698,2]
[353537934,1739904644984,-500.0,0.00013698,2]
[353537936,1739904644994,-500.0,0.00013698,2]
[353537938,1739904645004,-500.0,0.00013698,2]
[353537940,1739904645014,-500.0,0.00013698,2]
[353537942,1739904645024,-500.0,0.00013698,2]
[353537944,1739904645034,-511.47600272,0.00013698,2]
[353537946,1739904645044,-500.0,0.00013698,2]
[353537948,1739904645054,-500.0,0.00013698,2]
[353537950,1739904645063,-500.0,0.00013698,2]
[353537952,1739904645073,-501.74594599,0.00013698,2]
[353537954,1739904645083,-500.94804017,0.00013698,2]
[353537956,1739904645092,-619.41708239,0.00013698,2]
[353537958,1739904645102,-500.0,0.00013698,2]
[353537960,1739904645112,-500.0,0.00013698,2]
[353537962,1739904645123,-505.18593949,0.00013698,2]
[353537964,1739904645133,-500.0,0.00013698,2]
[353537966,1739904645143,-500.0,0.00013698,2]
[353537968,1739904645153,-500.0,0.00013698,2]
[353537970,1739904645162,-500.0,0.00013698,2]
[353537972,1739904645173,-500.0,0.00013698,2]
[353537974,1739904645183,-500.0,0.00013698,2]
[353537975,1739904645194,-233.43592483,0.00013698,2]
[353537977,1739904645207,-500.0,0.00013698,2]
[353537979,1739904645218,-500.0,0.00013698,2]
[353537981,1739904645231,-500.0,0.00013698,2]
[353537983,1739904645242,-500.0,0.00013698,2]